bitfinex-derivatives/quotes_ETHF0:USTF0_20260131
["timestamp","ask_amount","ask_price","bid_price","bid_amount"]
[1769876345035,4.15058487,2538.3,2535.7,3.8290323]
[1769876345337,4.15059487,2538.1,2535.5,16.31552055]
[1769876345539,4.15059487,2538.1,2535.5,19.95445218]
[1769876345741,4.15059487,2538.1,2535.5,19.95103565]
[1769876346037,4.15059487,2538.1,2535.8,0.00341653]
[1769876346336,3.95329487,2538.1,2535.5,16.31948335]
[1769876346637,3.95329487,2538.1,2535.6,0.00341653]
[1769876346935,3.95329487,2538.1,2535.6,3.76918109]
[1769876347135,3.95329487,2538.1,2536.3,3.76918109]
[1769876347335,3.95329487,2538.1,2535.9,3.76918109]
[1769876347535,3.95329487,2538.1,2536.3,3.77259762]
[1769876348029,3.95329487,2538.1,2535.5,16.31948335]
[1769876348536,3.76472781,2537.9,2535.5,16.31948335]
[1769876348927,3.586,2538.1,2535.5,16.31948335]
[1769876348928,7.54802781,2538.1,2535.6,3.76918109]
[1769876349236,3.76890365,2539.3,2537.1,0.19738]
[1769876349534,3.76890365,2539.3,2535.5,16.31948335]
[1769876349535,3.76472781,2539.0,2536.6,3.96659109]
[1769876349932,3.76472781,2539.0,2536.8,3.76918109]
[1769876350132,3.76472781,2539.0,2537.1,0.19737]
[1769876350936,3.76472781,2539.0,2536.8,3.76918109]
[1769876351138,3.76472781,2539.0,2537.0,0.00341653]
[1769876351334,0.00417584,2539.3,2536.9,3.76918109]
[1769876351335,3.55217584,2539.3,2536.9,3.76918109]
[1769876351634,3.76472781,2541.5,2539.4,3.96638109]
[1769876351840,3.76472781,2541.5,2539.7,3.76918109]
[1769876352038,3.76472781,2542.0,2539.9,3.76918109]
[1769876352243,3.76472781,2542.0,2539.4,3.76918109]
[1769876352540,3.7688384,2542.0,2539.4,3.77346189]
[1769876352840,3.7688384,2542.0,2540.1,3.96632109]
[1769876353041,3.7688384,2542.0,2539.5,3.76918109]
[1769876353440,0.19702,2541.8,2539.4,0.0042808]
[1769876353646,3.76472781,2541.4,2539.4,0.0042808]
[1769876353946,3.76472781,2540.4,2537.2,3.76918109]
[1769876354139,3.76472781,2539.6,2536.7,3.76918109]
[1769876354442,3.76472781,2539.5,2536.9,3.76918109]
[1769876354738,3.76472781,2539.5,2536.9,3.96657109]
[1769876355042,3.76930116,2539.5,2537.1,0.00341653]
[1769876355239,3.548,2539.6,2537.0,3.76918109]
[1769876355439,3.76472781,2541.1,2539.2,3.76918109]
[1769876355633,3.76472781,2541.1,2537.1,3.548]
[1769876355634,3.76472781,2541.1,2538.6,3.76918109]
[1769876356038,3.76472781,2541.1,2538.9,3.77259762]
[1769876356244,3.76472781,2541.1,2538.5,0.19727]
[1769876356442,3.76856827,2541.1,2538.8,3.76918109]
[1769876357143,3.76856827,2541.1,2538.5,0.00476415]
[1769876357443,0.1971,2540.7,2538.5,0.00476415]
[1769876357636,3.96187781,2540.1,2538.5,0.00476415]
[1769876357841,3.76472781,2539.9,2538.5,0.00476415]
[1769876358241,3.76472781,2539.9,2537.1,7.31718109]
[1769876358645,3.76472781,2539.7,2537.1,3.548]
[1769876358847,3.76472781,2539.3,2536.7,3.76918109]
[1769876359043,3.76472781,2539.0,2536.7,3.76918109]
[1769876359247,3.76472781,2539.0,2536.7,0.00398191]
[1769876359248,3.76472781,2538.8,2536.7,0.00398191]
[1769876359744,3.76472781,2538.4,2536.7,0.00398191]
[1769876360345,3.96200781,2538.4,2536.7,0.00398191]
[1769876360945,3.76472781,2538.2,2536.7,0.00398191]
[1769876361552,3.76472781,2538.0,2535.7,3.76918109]
[1769876361955,3.76472781,2538.0,2536.4,0.00341653]
[1769876362249,3.76472781,2538.0,2536.1,3.76918109]
[1769876362551,3.76472781,2538.5,2536.5,0.00341653]
[1769876362751,3.76472781,2538.5,2536.1,0.0042522]
[1769876363153,3.76472781,2538.3,2536.1,0.0042522]
[1769876363349,3.96201781,2538.3,2536.1,0.0042522]
[1769876363550,3.76472781,2538.1,2536.1,0.0042522]
[1769876364050,3.76472781,2538.1,2536.4,0.00341653]
[1769876364451,3.76472781,2538.1,2536.5,0.00341653]
[1769876364756,3.76472781,2538.1,2536.4,0.00341653]
[1769876365152,3.76472781,2538.1,2536.5,0.00341653]
[1769876365347,3.76472781,2538.1,2536.1,0.0042522]
[1769876365851,4.61326067,2540.3,2538.4,0.19727]
[1769876366052,23.19473577,2540.9,2538.0,3.549]
[1769876366252,23.19473577,2540.8,2539.2,0.19721]
[1769876366455,4.01530608,2541.5,2538.7,0.00506042]
[1769876366651,27.20751164,2541.4,2539.7,0.19717]
[1769876366853,4.01277587,2541.3,2539.7,0.20162783]
[1769876367149,23.19473577,2541.3,2539.7,0.00445783]
[1769876367550,4.01277587,2541.2,2539.7,0.00445783]
[1769876367753,4.01277587,2540.7,2539.0,0.19723]
[1769876367954,4.01277587,2540.5,2538.0,3.55406042]
[1769876368161,0.20067497,2541.4,2538.1,0.00506042]
[1769876368162,4.01277587,2541.2,2538.1,0.00506042]
[1769876368351,23.19473577,2541.3,2539.0,0.19723]
[1769876368553,0.00362497,2541.4,2540.4,0.19711]
[1769876368857,0.00362497,2541.4,2540.5,0.19711]
[1769876369656,4.01530609,2541.3,2540.4,0.00487656]
[1769876369854,7.87818347,2540.9,2539.3,0.1972]
[1769876370054,4.01530609,2541.1,2538.7,0.19725]
[1769876370355,4.01530609,2540.7,2538.7,0.19725]
[1769876370760,4.01530609,2539.7,2536.5,6.96837031]
[1769876370961,4.01530609,2539.7,2537.8,0.19732]
[1769876371155,27.21004186,2539.6,2537.3,0.00330283]
[1769876371355,4.01530609,2540.1,2537.4,0.19735]
[1769876371550,4.01530609,2541.2,2537.6,6.96837031]
[1769876371860,23.19473577,2541.1,2539.9,0.19716]
[1769876372050,27.21004186,2541.1,2539.9,0.19716]
[1769876372356,27.21004186,2541.1,2538.9,3.547]
[1769876372357,11.89348956,2540.4,2538.9,3.547]
[1769876372558,4.01530609,2540.3,2538.9,3.547]
[1769876372758,4.01530609,2540.3,2537.6,6.96837031]
[1769876372961,4.01530609,2540.1,2538.2,0.19729]
[1769876373254,4.01530609,2539.9,2538.2,0.19729]
[1769876373459,4.01530609,2539.9,2538.2,0.20027436]
[1769876373660,4.01530609,2539.7,2538.2,0.20027436]
[1769876373866,4.01530609,2540.2,2538.4,0.19727]
[1769876374363,4.01530609,2540.0,2538.7,0.19725]
[1769876374660,4.01530609,2539.8,2538.2,0.00298436]
[1769876375061,4.01530609,2539.6,2538.2,0.00298436]
[1769876375457,0.00497881,2541.1,2538.2,0.00298436]
[1769876375458,4.01530609,2539.4,2538.2,0.00298436]
[1769876375652,4.01530609,2539.0,2537.2,0.19736]
[1769876375858,4.01530609,2539.0,2536.5,3.547]
[1769876376060,4.01530609,2538.8,2537.1,0.19737]
[1769876376460,4.01530609,2538.6,2537.1,0.19737]
[1769876376660,4.01974309,2538.6,2537.2,0.19737]
[1769876376865,4.01530609,2538.4,2537.2,0.19737]
[1769876377160,3.89024406,2537.2,2535.4,6.97918475]
[1769876377460,3.72110053,2537.0,2534.8,3.71828853]
[1769876377662,3.72110053,2537.0,2534.3,3.71828853]
[1769876377963,3.91850053,2536.8,2534.3,3.71828853]
[1769876378159,3.92252753,2536.8,2534.3,0.00367693]
[1769876378366,3.72110053,2536.6,2534.3,0.00367693]
[1769876378858,23.19473577,2536.5,2534.8,3.71828853]
[1769876379058,23.19473577,2536.7,2535.0,3.71828853]
[1769876379259,23.19473577,2536.4,2535.0,3.71828853]
[1769876379459,23.19473577,2536.7,2535.0,3.71828853]
[1769876379657,23.19473577,2536.7,2535.2,3.71828853]
[1769876380063,23.19473577,2536.7,2535.3,14.86071869]
[1769876380367,23.19473577,2536.7,2535.3,3.71828853]
[1769876380762,23.19473577,2536.7,2535.5,11.14243016]
[1769876381066,23.19473577,2536.7,2535.4,11.14243016]
[1769876381456,23.19473577,2536.7,2535.5,11.14243016]
[1769876381963,26.85112092,2536.7,2534.4,3.6514531]
[1769876382265,23.19473577,2536.7,2535.2,3.6514531]
[1769876382670,23.19473577,2536.7,2535.4,14.79388326]
[1769876382860,23.19473577,2536.7,2535.4,3.6514531]
[1769876383366,26.82752181,2536.7,2534.5,3.6514531]
[1769876383667,3.63278604,2536.6,2534.6,3.6514531]
[1769876383862,3.63278604,2536.6,2534.3,0.00367693]
[1769876384065,3.63278604,2536.4,2534.3,0.00367693]
[1769876384566,3.63278604,2536.2,2534.3,0.00367693]
[1769876384762,3.63278604,2536.2,2534.2,7.1994531]
[1769876384962,26.8296011,2536.1,2534.2,7.1994531]
[1769876385163,3.63486533,2536.1,2534.2,7.1994531]
[1769876385464,3.63486533,2535.9,2534.2,14.79388326]
[1769876385661,3.83230533,2536.4,2534.3,3.6514531]
[1769876385963,23.19473577,2536.7,2534.3,3.6514531]
[1769876385964,23.19473577,2536.3,2534.3,3.6514531]
[1769876386163,23.19473577,2536.6,2534.4,3.6514531]
[1769876386363,23.19473577,2536.6,2534.8,3.6514531]
[1769876387262,3.64940563,2536.5,2534.3,3.6514531]
[1769876387663,26.8441414,2536.4,2534.3,3.6514531]
[1769876387858,3.64940563,2536.4,2534.4,3.6514531]
[1769876388070,26.8441414,2536.3,2534.6,3.6514531]
[1769876388267,3.64940563,2536.3,2534.6,3.6514531]
[1769876388465,3.63674337,2536.1,2534.6,3.6514531]
[1769876388669,3.63674337,2536.1,2534.1,3.8490631]
[1769876388868,23.19473577,2536.0,2534.4,3.6514531]
[1769876389272,23.19473577,2536.0,2534.5,14.79388326]
[1769876389570,23.19473577,2536.0,2534.7,3.6514531]
[1769876389968,3.63674337,2535.8,2534.1,3.6514531]
[1769876390467,23.19473577,2535.7,2534.6,3.6514531]
[1769876390675,3.63674337,2536.3,2534.6,3.6514531]
[1769876390864,23.19473577,2536.2,2534.6,3.6514531]
[1769876391172,23.19473577,2536.2,2535.3,3.6514531]
[1769876391359,0.004027,2536.8,2535.3,3.6514531]
[1769876391566,23.19473577,2536.7,2535.3,3.6514531]
[1769876391766,23.19473577,2536.7,2535.6,11.14243016]
[1769876391966,0.004027,2536.8,2536.1,3.6514531]
[1769876392162,3.57462449,2538.0,2536.6,11.14243016]
[1769876392367,3.57462449,2538.0,2536.5,3.6514531]
[1769876392368,23.19473577,2537.9,2536.5,3.6514531]
[1769876392566,3.57462449,2538.0,2536.5,3.6514531]
[1769876392762,23.19473577,2537.9,2536.5,3.6514531]
[1769876392961,23.19473577,2537.9,2536.5,14.79388326]
[1769876393165,23.1987181,2537.9,2536.5,14.79388326]
[1769876393569,3.56275936,2537.8,2536.0,3.6514531]
[1769876393762,3.56275936,2537.8,2535.6,0.00364175]
[1769876394074,23.1987181,2537.9,2535.6,3.65509485]
[1769876394075,3.56275936,2537.6,2535.6,3.65509485]
[1769876394269,3.76011936,2537.4,2535.6,3.65509485]
[1769876394468,3.76011936,2537.4,2535.6,0.00364175]
[1769876394469,3.56275936,2537.4,2535.6,0.00364175]
[1769876394661,0.19739,2536.9,2535.6,0.00364175]
[1769876395170,26.75929128,2536.8,2535.6,0.00364175]
[1769876395671,26.75929128,2536.8,2535.1,3.6514531]
[1769876395672,3.76196551,2536.7,2535.1,3.6514531]
[1769876396170,3.56455551,2536.5,2534.2,3.6514531]
[1769876396375,3.56455551,2536.5,2534.3,3.6514531]
[1769876396674,3.78068528,2536.3,2534.1,3.8490631]
[1769876396868,3.78068528,2536.3,2534.3,0.00406811]
[1769876397265,3.78068528,2536.3,2534.5,11.14243016]
[1769876397266,23.19473577,2536.2,2534.5,11.14243016]
[1769876397574,26.77798105,2536.2,2534.5,3.6514531]
[1769876398172,3.58324528,2535.7,2534.3,0.00406811]
[1769876398373,3.58796096,2535.7,2534.3,0.00406811]
[1769876398569,23.19473577,2535.6,2534.4,11.14243016]
[1769876398771,23.19473577,2535.6,2534.3,11.14649827]
[1769876398972,23.19473577,2535.6,2534.4,11.14243016]
[1769876399680,23.19473577,2535.6,2534.9,11.14243016]
[1769876399875,3.56923368,2535.5,2534.4,11.14243016]
[1769876400076,23.19473577,2535.6,2534.8,11.14243016]
[1769876400478,23.19473577,2535.6,2535.0,11.14243016]
[1769876400678,0.00471568,2535.7,2535.0,11.14243016]
[1769876400978,3.57208403,2536.5,2534.7,3.6514531]
[1769876401180,13.44337954,2536.4,2534.7,3.6514531]
[1769876401671,3.57208403,2536.3,2534.7,3.6514531]
[1769876401870,3.57208403,2536.1,2534.3,3.65552121]
[1769876402176,13.44337954,2536.2,2534.3,3.65552121]
[1769876402572,0.00418592,2536.3,2534.8,3.8490031]
[1769876402779,13.44756546,2536.3,2534.8,3.6514531]
[1769876402974,13.44756546,2536.3,2534.5,3.6514531]
[1769876403176,0.00418592,2536.3,2534.9,3.6514531]
[1769876403880,13.44756546,2536.3,2534.9,3.6514531]
[1769876404278,3.5819003,2536.2,2534.4,3.6514531]
[1769876404481,3.55664432,2535.8,2534.4,3.6514531]
[1769876404876,0.19754,2535.1,2533.3,3.6514531]
[1769876405081,3.75012621,2534.9,2533.3,3.6514531]
[1769876405278,3.55257621,2534.7,2532.8,3.6514531]
[1769876405481,3.55257621,2534.5,2532.8,3.6514531]
[1769876405879,13.44337954,2534.4,2532.8,3.65527336]
[1769876406385,13.44337954,2534.4,2533.1,3.6514531]
[1769876406580,13.44337954,2534.4,2532.0,10.05195778]
[1769876406581,3.56836243,2534.0,2532.1,3.6514531]
[1769876406880,34.40008705,2533.6,2531.2,3.98032831]
[1769876407084,3.57269937,2532.9,2531.2,3.98032831]
[1769876407285,13.43955928,2533.5,2531.5,3.98032831]
[1769876407487,13.43955928,2533.4,2531.7,4.17811831]
[1769876407783,3.57269937,2534.0,2531.7,3.98380004]
[1769876407982,3.57269937,2533.8,2531.7,3.98380004]
[1769876408483,13.43955928,2533.7,2531.7,3.98380004]
[1769876409988,0.00351754,2534.5,2530.0,4.08032831]
[1769876409989,3.5836338,2532.3,2530.0,4.08032831]
[1769876410288,3.5836338,2532.1,2530.0,0.1]
[1769876410488,3.56979253,2531.8,2530.0,0.1]
[1769876410693,0.1978,2531.7,2530.0,0.1]
[1769876410884,3.56979253,2531.6,2530.0,4.08523943]
[1769876411286,13.43955928,2531.5,2530.0,4.08523943]
[1769876411486,3.56979253,2531.4,2530.0,0.10491112]
[1769876411887,17.00935181,2531.3,2530.0,0.10491112]
[1769876412089,13.43955928,2531.2,2530.0,4.08523943]
[1769876412290,17.00935181,2531.6,2530.0,4.08523943]
[1769876412491,3.91885157,2532.9,2530.4,3.98032831]
[1769876412792,3.91885157,2532.7,2530.4,3.98032831]
[1769876413188,3.91885157,2532.5,2530.4,3.98032831]
[1769876413484,0.19779,2531.8,2530.0,0.10491112]
[1769876413795,3.91885157,2531.6,2530.0,0.10491112]
[1769876414292,3.91885157,2531.4,2530.0,0.10491112]
[1769876414789,3.91885157,2531.2,2530.0,0.10491112]
[1769876415292,3.91885157,2531.0,2529.0,4.17833831]
[1769876415495,13.34166319,2531.5,2529.3,3.98032831]
[1769876415697,3.91885157,2533.3,2531.0,3.98032831]
[1769876415889,9.42281162,2533.2,2531.5,3.98032831]
[1769876416095,3.91885157,2533.6,2531.5,3.98032831]
[1769876416288,3.91885157,2533.4,2531.5,3.98032831]
[1769876416495,9.42281162,2533.5,2531.5,3.98032831]
[1769876416496,13.34166319,2533.5,2531.5,3.98032831]
[1769876416790,13.34554028,2533.5,2531.7,3.98032831]
[1769876417298,3.91885157,2533.4,2531.7,3.98032831]
[1769876417698,3.91885157,2533.2,2531.7,3.98032831]
[1769876417896,3.91885157,2533.2,2531.5,0.00462064]
[1769876418102,3.91885157,2533.0,2531.5,0.00462064]
[1769876418591,0.00387709,2533.5,2531.6,3.98032831]
[1769876418793,9.42281162,2533.3,2531.7,3.98032831]
[1769876419899,3.91885157,2533.2,2531.5,0.00462064]
[1769876420396,3.91885157,2533.0,2531.5,0.00462064]
[1769876420900,13.34166319,2532.9,2531.5,0.00462064]
[1769876421099,3.91885157,2532.9,2531.5,0.00462064]
[1769876421296,9.42281162,2532.8,2531.5,3.98494895]
[1769876421500,3.91885157,2532.7,2531.5,0.00462064]
[1769876421897,9.42281162,2532.6,2531.5,0.00462064]
[1769876422100,9.42281162,2533.0,2531.5,0.00462064]
[1769876422299,9.42281162,2533.0,2531.5,3.98494895]
[1769876422501,13.34166319,2533.0,2531.5,3.98494895]
[1769876422699,3.91885157,2532.8,2531.5,0.00462064]
[1769876423102,3.91885157,2532.6,2529.8,3.98032831]
[1769876423406,3.91885157,2532.1,2529.8,3.98032831]
[1769876423803,9.42281162,2532.0,2529.8,4.17827831]
[1769876424001,9.42281162,2532.0,2530.0,3.98032831]
[1769876424300,9.42281162,2532.0,2530.3,3.98032831]
[1769876424506,3.91885157,2533.3,2531.1,3.98032831]
[1769876425002,3.91885157,2533.1,2531.1,3.98032831]
[1769876425499,0.19767,2533.4,2531.1,3.98032831]
[1769876425500,3.91885157,2532.9,2531.1,3.98032831]
[1769876425698,9.42281162,2532.8,2531.1,3.98032831]
[1769876425899,9.42281162,2533.8,2532.0,4.17809831]
[1769876426100,3.91885157,2534.7,2532.3,4.17807831]
[1769876426298,9.42281162,2534.6,2532.8,0.19771]
[1769876426505,3.91885157,2535.2,2533.1,0.19768]
[1769876426699,9.42281162,2535.1,2533.2,3.98032831]
[1769876426903,9.42689611,2535.1,2533.2,3.98474683]
[1769876427506,3.91885157,2534.9,2533.2,3.98474683]
[1769876427903,3.91885157,2534.4,2533.2,0.00441852]
[1769876428098,3.55987709,2534.5,2533.2,0.00441852]
[1769876428099,9.42281162,2534.8,2533.2,3.98474683]
[1769876428307,16.90154028,2534.7,2533.2,3.98474683]
[1769876428505,9.42281162,2535.0,2533.2,3.98474683]
[1769876428708,9.42281162,2535.0,2533.5,3.98032831]
[1769876429412,0.00408449,2535.1,2533.5,3.98032831]
[1769876430016,3.544,2537.2,2533.2,0.00441852]
[1769876430017,3.91885157,2538.2,2535.7,3.98032831]
[1769876430309,9.42281162,2538.2,2536.2,3.98032831]
[1769876430500,3.91885157,2538.1,2536.2,3.98032831]
[1769876430909,9.42281162,2538.0,2536.2,3.98392367]
[1769876431103,3.91885157,2539.8,2536.4,3.98032831]
[1769876431309,3.91885157,2539.8,2536.9,3.98032831]
[1769876431505,3.91885157,2539.0,2536.9,3.98032831]
[1769876431909,3.91885157,2538.7,2536.9,3.98032831]
[1769876432112,3.91885157,2538.6,2536.9,3.98032831]
[1769876432313,7.47872866,2538.3,2536.3,3.98032831]
[1769876432506,3.91885157,2538.3,2536.3,3.98032831]
[1769876432713,3.91885157,2538.2,2536.3,3.98032831]
[1769876433409,3.92240091,2538.7,2536.3,3.98032831]
[1769876433605,7.482278,2538.7,2536.3,3.98032831]
[1769876433811,3.91885157,2538.5,2536.3,4.17776831]
[1769876434412,0.00354934,2538.7,2536.2,0.00359536]
[1769876434413,0.00354934,2538.7,2536.5,3.98032831]
[1769876434613,0.00354934,2538.7,2536.8,6.73319892]
[1769876434916,3.92240091,2538.7,2536.9,3.98032831]
[1769876435316,3.55987709,2538.5,2536.9,3.98032831]
[1769876435517,3.91885157,2538.6,2536.9,3.98032831]
[1769876435708,0.00354934,2538.7,2536.9,3.98032831]
[1769876436015,3.91885157,2539.6,2537.2,3.98032831]
[1769876436810,3.80813787,2540.2,2537.8,3.98032831]
[1769876437016,3.81150579,2540.2,2538.2,3.64846606]
[1769876437210,0.00336792,2540.2,2538.4,3.64846606]
[1769876437521,7.37138288,2540.2,2538.4,3.64846606]
[1769876437711,3.80813787,2540.0,2538.4,3.64846606]
[1769876438115,3.55987709,2539.8,2538.4,3.64846606]
[1769876438414,3.80813787,2540.0,2538.2,0.00465785]
[1769876438615,3.80813787,2539.8,2538.2,3.65312391]
[1769876438813,7.36801496,2539.6,2538.2,3.65312391]
[1769876439015,3.80813787,2539.2,2538.2,0.00018519]
[1769876439522,3.55987709,2538.6,2538.2,0.00018519]
[1769876439712,3.55987709,2538.3,2538.2,0.00018519]
[1769876439916,3.80813787,2539.8,2537.8,3.64846606]
[1769876440118,3.80813787,2539.8,2537.8,3.84577606]
[1769876440416,3.80813787,2539.8,2537.3,3.64846606]
[1769876440817,3.81178043,2539.8,2537.3,3.65184339]
[1769876441622,4.00895043,2539.8,2537.3,3.65184339]
[1769876441822,4.00895043,2539.8,2537.3,3.84919339]
[1769876442722,3.81178043,2539.8,2537.5,3.63986303]
[1769876443520,3.81178043,2539.8,2537.7,0.19733]
[1769876443714,3.81178043,2539.8,2537.8,3.63986303]
[1769876443916,3.81178043,2539.8,2537.3,0.00337733]
[1769876443917,3.81178043,2539.8,2538.2,3.63986303]
[1769876445022,0.00364256,2539.8,2538.2,3.63986303]
[1769876445218,3.94774411,2540.8,2539.2,3.63986303]
[1769876445418,3.94774411,2540.8,2538.1,3.55]
[1769876445419,3.94774411,2540.8,2539.4,3.83705303]
[1769876445619,3.94774411,2541.6,2539.9,3.83701303]
[1769876445818,3.94774411,2541.6,2539.4,3.63986303]
[1769876446024,3.94774411,2541.6,2539.9,0.19716]
[1769876446320,3.95165451,2541.6,2539.9,0.00412301]
[1769876446514,3.95165451,2541.6,2540.0,0.19715]
[1769876446718,3.95165451,2541.6,2539.9,0.00412301]
[1769876448116,3.94774411,2541.4,2538.9,3.63986303]
[1769876448427,3.94774411,2540.7,2538.2,3.83715303]
[1769876449017,3.94774411,2540.7,2538.6,0.19725]
[1769876449220,3.94774411,2540.7,2538.6,3.84068917]
[1769876449921,3.94774411,2540.7,2539.0,3.63986303]
[1769876450127,3.94774411,2541.2,2539.6,3.63986303]
[1769876450320,3.94774411,2541.2,2538.7,3.63986303]
[1769876450526,3.94774411,2541.2,2539.1,3.83708303]
[1769876451120,3.94774411,2541.2,2539.7,0.19717]
[1769876451325,3.94774411,2541.2,2539.7,3.83703303]
[1769876452526,0.0039104,2541.6,2539.7,3.63986303]
[1769876452722,3.94774411,2542.7,2540.8,3.83694303]
[1769876452924,3.94774411,2542.7,2540.8,0.19708]
[1769876453120,3.94774411,2542.7,2540.1,3.63986303]
[1769876453323,3.94774411,2542.7,2540.2,3.83699303]
[1769876453631,3.94774411,2542.7,2540.6,3.83696303]
[1769876454030,3.95256567,2542.7,2540.6,3.8415802]
[1769876456829,3.95256567,2542.7,2540.8,3.63986303]
[1769876457029,0.00482156,2542.7,2541.3,3.63986303]
[1769876457228,0.00482156,2542.7,2540.8,3.63986303]
[1769876457229,3.95256567,2542.7,2540.8,3.63986303]
[1769876457429,3.95256567,2542.7,2540.6,0.00461717]
[1769876458434,3.95256567,2542.7,2540.6,3.6444802]
[1769876458634,3.95256567,2542.7,2540.8,3.63986303]
[1769876458836,3.95256567,2542.7,2540.7,0.19709]
[1769876459137,3.95256567,2542.7,2540.7,3.83695303]
[1769876459534,3.95256567,2542.7,2540.6,0.00461717]
[1769876459732,3.95256567,2542.7,2540.6,3.6444802]
[1769876459931,3.94774411,2543.7,2541.5,0.19703]
[1769876460128,3.94774411,2543.7,2541.6,3.63986303]
[1769876460332,3.94774411,2543.7,2540.9,8.49702874]
[1769876460333,3.94774411,2543.7,2540.9,3.63986303]
[1769876460632,3.94774411,2543.7,2541.1,3.63986303]
[1769876460936,3.95101034,2543.7,2541.9,3.63986303]
[1769876461329,3.95101034,2543.7,2541.8,0.19701]
[1769876461330,3.545,2545.6,2542.6,3.63986303]
[1769876461533,3.94774411,2546.3,2542.8,3.83679303]
[1769876461732,3.94774411,2546.3,2543.1,3.63986303]
[1769876461929,3.94774411,2546.3,2543.7,3.63986303]
[1769876462134,3.94774411,2547.4,2543.7,3.83672303]
[1769876462331,3.95171151,2547.4,2543.7,3.84093515]
[1769876462833,3.95171151,2547.4,2544.0,3.63986303]
[1769876463139,3.95171151,2547.4,2544.5,3.63986303]
[1769876463330,3.95171151,2547.4,2544.5,3.83666303]
[1769876463534,3.95171151,2547.4,2544.7,3.63986303]
[1769876463736,3.95171151,2547.4,2544.6,3.83665303]
[1769876464034,0.0039674,2547.4,2544.6,3.83665303]
[1769876464333,3.94774411,2547.3,2545.3,3.63986303]
[1769876464735,3.94774411,2548.5,2545.3,3.63986303]
[1769876464933,3.94774411,2548.5,2544.6,0.19679]
[1769876464934,3.94774411,2548.5,2545.5,3.63986303]
[1769876465235,3.94774411,2549.6,2546.2,3.63986303]
[1769876465828,0.00472423,2549.6,2546.5,3.63986303]
[1769876466135,3.94774411,2550.7,2547.2,3.63986303]
[1769876466434,3.94774411,2551.1,2547.2,3.63986303]
[1769876466640,3.94774411,2551.1,2547.8,3.63986303]
[1769876466846,3.94774411,2551.1,2548.0,3.63986303]
[1769876467033,3.63881372,2550.9,2548.0,0.00485943]
[1769876467331,3.63881372,2549.5,2548.0,0.00485943]
[1769876467536,3.63881372,2549.2,2546.3,3.541]
[1769876467730,3.63881372,2548.8,2546.4,3.73997075]
[1769876467935,3.63881372,2550.3,2546.6,3.73997075]
[1769876468530,3.64286524,2550.3,2546.6,3.74480774]
[1769876468835,3.64286524,2550.3,2546.9,3.73997075]
[1769876469131,3.63881372,2549.2,2546.6,3.74480774]
[1769876469728,3.63881372,2549.0,2546.6,3.74480774]
[1769876470329,3.63881372,2550.2,2547.0,3.73997075]
[1769876470532,3.63881372,2549.2,2546.6,0.00483699]
[1769876470734,3.63881372,2548.6,2546.6,3.74480774]
[1769876470936,3.63881372,2548.3,2546.6,0.00483699]
[1769876471137,3.64189478,2548.3,2546.6,0.00483699]
[1769876471341,0.00308106,2548.3,2546.6,3.74480774]
[1769876471934,3.63881372,2551.2,2546.6,3.74480774]
[1769876472133,3.63881372,2550.1,2546.6,3.74480774]
[1769876472329,3.63881372,2549.7,2546.6,3.74480774]
[1769876472529,3.63881372,2549.5,2546.6,0.00483699]
[1769876472736,3.63881372,2549.2,2546.6,0.00483699]
[1769876472936,3.63881372,2548.2,2546.6,0.00483699]
[1769876473139,3.63881372,2547.8,2545.5,3.73997075]
[1769876473435,3.63881372,2547.6,2544.2,1.30250807]
[1769876473636,3.63881372,2546.5,2544.4,7.90513111]
[1769876474039,3.64340067,2546.5,2544.4,0.00351669]
[1769876474345,3.64340067,2546.5,2541.8,3.538]
[1769876474346,3.64340067,2546.5,2543.2,3.73997075]
[1769876474932,3.63881372,2546.3,2543.2,3.73997075]
[1769876475137,3.63881372,2546.3,2543.3,3.73997075]
[1769876475741,3.63881372,2546.3,2543.2,0.00370606]
[1769876475939,3.63881372,2545.8,2543.2,0.00370606]
[1769876476144,3.63881372,2545.8,2543.2,3.74367681]
[1769876476336,3.63881372,2545.8,2543.4,3.73997075]
[1769876476536,3.63881372,2545.8,2543.9,3.73997075]
[1769876476935,3.63881372,2545.8,2543.2,0.00370606]
[1769876476936,3.63881372,2546.4,2545.0,3.73997075]
[1769876477135,3.63881372,2546.4,2545.0,0.0044961]
[1769876477438,3.63881372,2546.4,2543.6,3.538]
[1769876477640,3.63881372,2546.2,2543.8,3.73997075]
[1769876477841,3.63881372,2546.2,2544.0,3.73997075]
[1769876478038,3.63881372,2546.2,2543.8,7.65300074]
[1769876478238,3.63881372,2546.1,2543.8,0.0049041]
[1769876478744,3.63881372,2546.1,2542.1,3.538]
[1769876478745,3.63881372,2546.1,2542.3,3.73997075]
[1769876479240,3.63881372,2545.7,2540.6,3.73997075]
[1769876479446,3.63881372,2545.7,2540.7,3.73997075]
[1769876479739,3.63881372,2545.7,2542.0,3.73997075]
[1769876480134,3.63881372,2545.5,2541.5,3.73997075]
[1769876480641,3.63881372,2545.3,2541.5,3.73997075]
[1769876481342,3.63881372,2545.3,2540.5,3.538]
[1769876481343,3.63881372,2543.9,2540.5,3.538]
[1769876481647,3.63881372,2543.9,2539.3,3.73997075]
[1769876482038,3.63881372,2543.9,2539.3,7.65300074]
[1769876482239,0.19682,2544.4,2539.5,3.73997075]
[1769876482240,3.63881372,2543.7,2539.5,3.73997075]
[1769876482438,3.64179913,2543.7,2539.6,3.73997075]
[1769876482643,3.64179913,2543.7,2540.0,3.73997075]
[1769876482839,3.64179913,2543.7,2540.1,3.73997075]
[1769876483141,3.64179913,2543.7,2540.7,3.73997075]
[1769876483341,3.64179913,2543.7,2541.3,3.73997075]
[1769876483550,3.64179913,2543.7,2541.3,3.74435375]
[1769876483738,0.00298541,2543.7,2541.7,3.73997075]
[1769876484044,3.63881372,2544.8,2543.0,3.73997075]
[1769876484235,3.63881372,2545.4,2543.0,3.73997075]
[1769876484434,3.63881372,2545.4,2543.2,3.73997075]
[1769876484841,3.64220505,2545.4,2543.3,3.73997075]
[1769876485150,3.64220505,2545.4,2543.2,3.74337939]
[1769876485340,3.64220505,2545.4,2543.7,3.73997075]
[1769876485534,3.64220505,2545.4,2543.7,7.65300074]
[1769876486038,3.64220505,2545.4,2543.2,3.74337939]
[1769876486544,3.64220505,2545.4,2543.2,0.00340864]
[1769876486739,3.63881372,2545.3,2543.2,3.74337939]
[1769876486941,3.63881372,2545.3,2543.7,3.73997075]
[1769876487142,0.00339133,2545.4,2544.3,3.73997075]
[1769876487343,3.63881372,2546.3,2544.5,3.73997075]
[1769876488047,3.63881372,2546.3,2544.7,3.91302999]
[1769876488243,3.63881372,2546.3,2544.9,3.91302999]
[1769876488548,3.64305191,2546.3,2543.3,3.73997075]
[1769876488842,3.64305191,2546.3,2543.2,3.54340864]
[1769876489047,3.64305191,2546.3,2543.9,3.73997075]
[1769876489747,3.64305191,2546.3,2544.0,3.73997075]
[1769876489949,3.64305191,2546.3,2544.0,7.65300074]
[1769876490144,3.64305191,2546.3,2544.0,3.73997075]
[1769876490644,3.64305191,2546.3,2543.3,3.73997075]
[1769876490848,3.64305191,2546.3,2543.2,3.54340864]
[1769876490849,3.63881372,2547.4,2545.2,3.73997075]